[Event "*** Titled Tuesday Blitz"]
[Site "Chess.com"]
[Date "2020.05.19"]
[Round "8"]
[White "GameOverBro"]
[Black "Emolas-2020"]
[Result "1-0"]
[WhiteElo "2510"]
[BlackElo "2294"]
[TimeControl "180+1"]
[EndTime "13:37:34 PDT"]
[Termination "GameOverBro won on time"]

1. e4 {[%clk 0:02:54.1]} 1... c5 {[%clk 0:02:59.2]} 2. Ne2 {[%clk 0:02:53.9]}
2... Nc6 {[%clk 0:02:58.8]} 3. Nbc3 {[%clk 0:02:54.5]} 3... e5 {[%clk
0:02:56.9]} 4. Ng3 {[%clk 0:02:54.4]} 4... g6 {[%clk 0:02:56.6]} 5. Bc4 {[%clk
0:02:54.9]} 5... Bg7 {[%clk 0:02:56.1]} 6. d3 {[%clk 0:02:55.6]} 6... h6 {[%clk
0:02:54.9]} 7. f4 {[%clk 0:02:56]} 7... d6 {[%clk 0:02:52.2]} 8. O-O {[%clk
0:02:55.9]} 8... Nf6 {[%clk 0:02:47.6]} 9. h3 {[%clk 0:02:51.4]} 9... h5 {[%clk
0:02:44.8]} 10. f5 {[%clk 0:02:49.3]} 10... h4 {[%clk 0:02:44]} 11. fxg6 {[%clk
0:02:45.4]} 11... fxg6 {[%clk 0:02:43.8]} 12. Bg5 {[%clk 0:02:20]} 12... hxg3
{[%clk 0:02:22.7]} 13. Nd5 {[%clk 0:02:19]} 13... Rf8 {[%clk 0:02:21.2]} 14. Qf3
{[%clk 0:02:00.6]} 14... Nd4 {[%clk 0:01:58.3]} 15. Nxf6+ {[%clk 0:01:30.1]}
15... Bxf6 {[%clk 0:01:56.7]} 16. Qxf6 {[%clk 0:01:29.2]} 16... Rxf6 {[%clk
0:01:52.7]} 17. Rxf6 {[%clk 0:01:24.9]} 17... Qe7 {[%clk 0:01:07]} 18. Rxg6
{[%clk 0:01:12.1]} 18... Qh7 {[%clk 0:01:01.9]} 19. Rg8+ {[%clk 0:01:06.7]}
19... Kd7 {[%clk 0:01:01.4]} 20. Bd5 {[%clk 0:00:40.7]} 20... Ne6 {[%clk
0:00:41]} 21. Bxe6+ {[%clk 0:00:33.7]} 21... Kxe6 {[%clk 0:00:40.6]} 22. Rd8
{[%clk 0:00:26.6]} 22... Qg6 {[%clk 0:00:22.2]} 23. h4 {[%clk 0:00:24.9]} 23...
b6 {[%clk 0:00:21.7]} 24. Rf1 {[%clk 0:00:20.6]} 24... Bb7 {[%clk 0:00:21.7]}
25. Rf6+ {[%clk 0:00:20.8]} 25... Qxf6 {[%clk 0:00:21.5]} 26. Bxf6 {[%clk
0:00:21.7]} 26... Kxf6 {[%clk 0:00:20.9]} 27. Rd7 {[%clk 0:00:22.1]} 27... Rb8
{[%clk 0:00:19.5]} 28. Rxd6+ {[%clk 0:00:22.1]} 28... Ke7 {[%clk 0:00:19.2]} 29.
Rg6 {[%clk 0:00:22.2]} 29... c4 {[%clk 0:00:17.1]} 30. Rxg3 {[%clk 0:00:21.2]}
30... cxd3 {[%clk 0:00:17.5]} 31. cxd3 {[%clk 0:00:22.1]} 31... Rh8 {[%clk
0:00:16.9]} 32. Rg7+ {[%clk 0:00:21.9]} 32... Kd6 {[%clk 0:00:14.4]} 33. Rxb7
{[%clk 0:00:22.8]} 33... Rxh4 {[%clk 0:00:14.7]} 34. Rxa7 {[%clk 0:00:22.5]}
34... Rf4 {[%clk 0:00:13.7]} 35. Ra3 {[%clk 0:00:22.7]} 35... Rf7 {[%clk
0:00:12.9]} 36. Rb3 {[%clk 0:00:23.1]} 36... Kc6 {[%clk 0:00:12.5]} 37. g3
{[%clk 0:00:22.8]} 37... Rf3 {[%clk 0:00:12]} 38. Kg2 {[%clk 0:00:23.2]} 38...
Re3 {[%clk 0:00:12.6]} 39. g4 {[%clk 0:00:23.2]} 39... Re2+ {[%clk 0:00:12.7]}
40. Kg3 {[%clk 0:00:23.5]} 40... Re1 {[%clk 0:00:13.1]} 41. g5 {[%clk
0:00:23.9]} 41... Rg1+ {[%clk 0:00:13.1]} 42. Kh4 {[%clk 0:00:24.5]} 42... Rg2
{[%clk 0:00:12.7]} 43. Kh5 {[%clk 0:00:24.6]} 43... b5 {[%clk 0:00:12.8]} 44. g6
{[%clk 0:00:24.8]} 44... Kc5 {[%clk 0:00:13.3]} 45. Kh6 {[%clk 0:00:25.1]} 45...
b4 {[%clk 0:00:13.6]} 46. g7 {[%clk 0:00:25.3]} 46... Rh2+ {[%clk 0:00:13.7]}
47. Kg6 {[%clk 0:00:25.7]} 47... Rg2+ {[%clk 0:00:14.2]} 48. Kf7 {[%clk
0:00:26.2]} 48... Rf2+ {[%clk 0:00:14.3]} 49. Ke6 {[%clk 0:00:26.6]} 49... Rg2
{[%clk 0:00:14.5]} 50. Kxe5 {[%clk 0:00:26.5]} 50... Rxg7 {[%clk 0:00:14.4]} 51.
d4+ {[%clk 0:00:26.7]} 51... Kc4 {[%clk 0:00:14.2]} 52. d5 {[%clk 0:00:26.9]}
52... Re7+ {[%clk 0:00:13.9]} 53. Kf4 {[%clk 0:00:26.8]} 53... Re8 {[%clk
0:00:10.7]} 54. d6 {[%clk 0:00:26.2]} 54... Kd4 {[%clk 0:00:08.6]} 55. e5 {[%clk
0:00:23.4]} 55... Rf8+ {[%clk 0:00:06.3]} 56. Kg5 {[%clk 0:00:20.6]} 56... Kxe5
{[%clk 0:00:06.5]} 57. d7 {[%clk 0:00:19.2]} 57... Rg8+ {[%clk 0:00:05]} 58. Kh6
{[%clk 0:00:18.6]} 58... Rd8 {[%clk 0:00:05.2]} 59. Rd3 {[%clk 0:00:17.9]} 59...
Ke6 {[%clk 0:00:04.6]} 60. Kg5 {[%clk 0:00:17.8]} 60... Rxd7 {[%clk 0:00:04.4]}
61. Rxd7 {[%clk 0:00:18]} 61... Kxd7 {[%clk 0:00:04.7]} 62. Kf5 {[%clk
0:00:18.6]} 62... Kc6 {[%clk 0:00:04.9]} 63. Ke4 {[%clk 0:00:19.1]} 63... Kc5
{[%clk 0:00:05]} 64. Kd3 {[%clk 0:00:19.2]} 64... Kb5 {[%clk 0:00:04.1]} 65. Kd4
{[%clk 0:00:19.2]} 1-0

[Event "*** Titled Tuesday Blitz"]
[Site "Chess.com"]
[Date "2020.05.19"]
[Round "8"]
[White "PowerThinking2650"]
[Black "noblerone"]
[Result "1-0"]
[WhiteElo "2312"]
[BlackElo "2435"]
[TimeControl "180+1"]
[EndTime "13:37:35 PDT"]
[Termination "PowerThinking2650 won by checkmate"]

1. e4 {[%clk 0:03:00.9]} 1... c5 {[%clk 0:02:59.7]} 2. Nf3 {[%clk 0:03:00.5]}
2... e6 {[%clk 0:03:00]} 3. d4 {[%clk 0:03:00.4]} 3... cxd4 {[%clk 0:03:00.9]}
4. Nxd4 {[%clk 0:03:01]} 4... Qb6 {[%clk 0:03:01.4]} 5. Nc3 {[%clk 0:02:58.9]}
5... Bc5 {[%clk 0:03:01.1]} 6. Be3 {[%clk 0:02:54.7]} 6... Nc6 {[%clk
0:03:00.8]} 7. Na4 {[%clk 0:02:17.6]} 7... Qa5+ {[%clk 0:03:00.3]} 8. c3 {[%clk
0:02:13.1]} 8... Bxd4 {[%clk 0:02:55]} 9. Bxd4 {[%clk 0:02:11.8]} 9... Nxd4
{[%clk 0:02:55.2]} 10. Qxd4 {[%clk 0:02:12]} 10... e5 {[%clk 0:02:52.6]} 11. Qd1
{[%clk 0:01:41.7]} 11... Nf6 {[%clk 0:02:38.3]} 12. b4 {[%clk 0:01:41.2]} 12...
Qc7 {[%clk 0:02:37.1]} 13. Qd3 {[%clk 0:01:32.3]} 13... O-O {[%clk 0:02:30.7]}
14. c4 {[%clk 0:01:30.7]} 14... b6 {[%clk 0:02:20.2]} 15. Be2 {[%clk 0:01:27.2]}
15... Bb7 {[%clk 0:02:19.4]} 16. f3 {[%clk 0:01:26.8]} 16... a5 {[%clk
0:02:04.6]} 17. b5 {[%clk 0:01:24]} 17... d6 {[%clk 0:01:59.2]} 18. Rd1 {[%clk
0:01:22]} 18... Rfd8 {[%clk 0:01:58.9]} 19. h4 {[%clk 0:01:14.7]} 19... Rab8
{[%clk 0:01:52.8]} 20. h5 {[%clk 0:01:13.5]} 20... h6 {[%clk 0:01:51.9]} 21. g4
{[%clk 0:01:12]} 21... Nh7 {[%clk 0:01:46.6]} 22. Qe3 {[%clk 0:01:03.8]} 22...
Ba8 {[%clk 0:01:46.3]} 23. Kf2 {[%clk 0:00:49.8]} 23... Ng5 {[%clk 0:01:44.9]}
24. Rd2 {[%clk 0:00:46.7]} 24... Ne6 {[%clk 0:01:34.5]} 25. Rhd1 {[%clk
0:00:45.4]} 25... Nd4 {[%clk 0:01:32]} 26. Rxd4 {[%clk 0:00:45.3]} 26... exd4
{[%clk 0:01:32.8]} 27. Rxd4 {[%clk 0:00:40.8]} 27... Qe7 {[%clk 0:01:30.9]} 28.
Qd2 {[%clk 0:00:26.6]} 28... Qe5 {[%clk 0:01:16.2]} 29. f4 {[%clk 0:00:24.5]}
29... Qf6 {[%clk 0:01:13.6]} 30. Kg3 {[%clk 0:00:22.6]} 30... Qe7 {[%clk
0:01:08.5]} 31. Bf3 {[%clk 0:00:19.2]} 31... g6 {[%clk 0:00:54.1]} 32. hxg6
{[%clk 0:00:18.6]} 32... fxg6 {[%clk 0:00:55]} 33. Qd3 {[%clk 0:00:19]} 33... g5
{[%clk 0:00:50.4]} 34. Qe3 {[%clk 0:00:15.8]} 34... Rf8 {[%clk 0:00:47.7]} 35.
e5 {[%clk 0:00:14.2]} 35... gxf4+ {[%clk 0:00:47.2]} 36. Rxf4 {[%clk 0:00:14]}
36... Rxf4 {[%clk 0:00:47.7]} 37. Qxf4 {[%clk 0:00:13.5]} 37... dxe5 {[%clk
0:00:39.1]} 38. Qxh6 {[%clk 0:00:12.6]} 38... Bxf3 {[%clk 0:00:37.8]} 39. Qg6+
{[%clk 0:00:12.5]} 39... Kf8 {[%clk 0:00:31.9]} 40. Qf5+ {[%clk 0:00:12]} 40...
Kg8 {[%clk 0:00:31.5]} 41. Qg6+ {[%clk 0:00:11.7]} 41... Kh8 {[%clk 0:00:31.3]}
42. Qh6+ {[%clk 0:00:11.3]} 42... Qh7 {[%clk 0:00:26.6]} 43. Qf6+ {[%clk
0:00:10.4]} 43... Qg7 {[%clk 0:00:27.1]} 44. Qxg7+ {[%clk 0:00:07.5]} 44... Kxg7
{[%clk 0:00:28]} 45. Kxf3 {[%clk 0:00:08]} 45... Kf6 {[%clk 0:00:28.2]} 46. Ke4
{[%clk 0:00:08.3]} 46... Ke6 {[%clk 0:00:28.4]} 47. g5 {[%clk 0:00:08.8]} 47...
Kd6 {[%clk 0:00:28.2]} 48. g6 {[%clk 0:00:08.8]} 48... Ke6 {[%clk 0:00:28.6]}
49. g7 {[%clk 0:00:08.1]} 49... Kf6 {[%clk 0:00:25.4]} 50. Nxb6 {[%clk
0:00:06.8]} 50... Rxb6 {[%clk 0:00:24.6]} 51. g8=Q {[%clk 0:00:06.7]} 51... Rd6
{[%clk 0:00:20.4]} 52. Qf8+ {[%clk 0:00:05.9]} 52... Ke6 {[%clk 0:00:20.4]} 53.
Qf5+ {[%clk 0:00:05.7]} 53... Ke7 {[%clk 0:00:20.1]} 54. Qxe5+ {[%clk 0:00:06]}
54... Kd7 {[%clk 0:00:21]} 55. Qxd6+ {[%clk 0:00:05.8]} 55... Kxd6 {[%clk
0:00:21.9]} 56. Kd4 {[%clk 0:00:06.4]} 56... Kc7 {[%clk 0:00:21.3]} 57. c5
{[%clk 0:00:07.3]} 57... Kb7 {[%clk 0:00:21.7]} 58. Kc4 {[%clk 0:00:08]} 58...
Kc7 {[%clk 0:00:20.9]} 59. Kd5 {[%clk 0:00:08.9]} 59... Kb7 {[%clk 0:00:21.8]}
60. a4 {[%clk 0:00:09.8]} 60... Ka7 {[%clk 0:00:22.7]} 61. c6 {[%clk 0:00:10.1]}
61... Kb8 {[%clk 0:00:23.6]} 62. Kd6 {[%clk 0:00:10.7]} 62... Kc8 {[%clk
0:00:24.5]} 63. b6 {[%clk 0:00:10.8]} 63... Kd8 {[%clk 0:00:24.9]} 64. b7 {[%clk
0:00:10.7]} 64... Ke8 {[%clk 0:00:24.9]} 65. b8=Q+ {[%clk 0:00:11.6]} 65... Kf7
{[%clk 0:00:25.8]} 66. c7 {[%clk 0:00:12.3]} 66... Kf6 {[%clk 0:00:26.7]} 67.
c8=Q {[%clk 0:00:13.1]} 67... Kg5 {[%clk 0:00:26.3]} 68. Qe8 {[%clk 0:00:14]}
68... Kh4 {[%clk 0:00:27.2]} 69. Qbd8+ {[%clk 0:00:14.3]} 69... Kh3 {[%clk
0:00:26.7]} 70. Qde7 {[%clk 0:00:15]} 70... Kh2 {[%clk 0:00:25.6]} 71. Q8f8
{[%clk 0:00:15.9]} 71... Kh3 {[%clk 0:00:25.8]} 72. Qeg7 {[%clk 0:00:16.8]}
72... Kh4 {[%clk 0:00:26.7]} 73. Qfh8# {[%clk 0:00:17.7]} 1-0

[Event "*** Titled Tuesday Blitz"]
[Site "Chess.com"]
[Date "2020.05.19"]
[Round "8"]
[White "Mr_Sinigami"]
[Black "VolodymyrMolyboha"]
[Result "1-0"]
[WhiteElo "2577"]
[BlackElo "2410"]
[TimeControl "180+1"]
[EndTime "13:37:37 PDT"]
[Termination "Mr_Sinigami won by resignation"]

1. d4 {[%clk 0:03:00.9]} 1... g6 {[%clk 0:02:59.7]} 2. Nf3 {[%clk 0:03:00]} 2...
Bg7 {[%clk 0:02:59.9]} 3. Bf4 {[%clk 0:02:59.8]} 3... c5 {[%clk 0:02:59.8]} 4.
e3 {[%clk 0:02:58.7]} 4... Nf6 {[%clk 0:02:59.8]} 5. c3 {[%clk 0:02:54.9]} 5...
b6 {[%clk 0:03:00]} 6. h3 {[%clk 0:02:54.6]} 6... Bb7 {[%clk 0:03:00.3]} 7. a4
{[%clk 0:02:53.2]} 7... a6 {[%clk 0:02:59.7]} 8. Be2 {[%clk 0:02:52.8]} 8... O-O
{[%clk 0:02:59]} 9. O-O {[%clk 0:02:52.4]} 9... d6 {[%clk 0:02:59.3]} 10. Na3
{[%clk 0:02:49.1]} 10... Nbd7 {[%clk 0:02:59.3]} 11. Bh2 {[%clk 0:02:43.6]}
11... Ra7 {[%clk 0:02:58.9]} 12. Nd2 {[%clk 0:02:40.8]} 12... Qa8 {[%clk
0:02:58.3]} 13. Bf3 {[%clk 0:02:40.4]} 13... Rb8 {[%clk 0:02:58]} 14. Re1 {[%clk
0:02:26.4]} 14... Bxf3 {[%clk 0:02:56.3]} 15. Nxf3 {[%clk 0:02:25]} 15... b5
{[%clk 0:02:55.8]} 16. a5 {[%clk 0:01:59.5]} 16... Ne4 {[%clk 0:02:48.1]} 17.
dxc5 {[%clk 0:01:44.2]} 17... Ndxc5 {[%clk 0:02:44.8]} 18. Nc2 {[%clk
0:01:43.7]} 18... Na4 {[%clk 0:02:24.5]} 19. Qb1 {[%clk 0:01:23.4]} 19... Rc8
{[%clk 0:02:13.3]} 20. Nb4 {[%clk 0:01:07.5]} 20... Rac7 {[%clk 0:02:00.9]} 21.
Nd4 {[%clk 0:01:05.3]} 21... Rc4 {[%clk 0:01:46.5]} 22. f3 {[%clk 0:00:47]}
22... Nf6 {[%clk 0:01:42.9]} 23. Bg3 {[%clk 0:00:43]} 23... Nd5 {[%clk
0:01:40.2]} 24. Bf2 {[%clk 0:00:41.7]} 24... Nxb4 {[%clk 0:01:39.3]} 25. cxb4
{[%clk 0:00:39.4]} 25... Rxb4 {[%clk 0:01:39.2]} 26. b3 {[%clk 0:00:35.6]} 26...
Nc5 {[%clk 0:01:32.5]} 27. Qd1 {[%clk 0:00:30.7]} 27... Qd5 {[%clk 0:01:19.8]}
28. e4 {[%clk 0:00:23.3]} 28... Rxd4 {[%clk 0:00:55.7]} 29. exd5 {[%clk
0:00:21.9]} 29... Rxd1 {[%clk 0:00:55.8]} 30. Raxd1 {[%clk 0:00:22.3]} 30...
Nxb3 {[%clk 0:00:56]} 31. Rxe7 {[%clk 0:00:22.2]} 31... Nxa5 {[%clk 0:00:52.6]}
32. Ra7 {[%clk 0:00:21.4]} 32... Be5 {[%clk 0:00:40.5]} 33. Rxa6 {[%clk
0:00:20.4]} 33... Nc4 {[%clk 0:00:40.6]} 34. g3 {[%clk 0:00:16.9]} 34... g5
{[%clk 0:00:37.6]} 35. Kg2 {[%clk 0:00:15.5]} 35... Kg7 {[%clk 0:00:37.5]} 36.
Rb1 {[%clk 0:00:13.4]} 36... Rb8 {[%clk 0:00:36]} 37. Rc6 {[%clk 0:00:12.1]}
37... Na3 {[%clk 0:00:23.3]} 38. Rb3 {[%clk 0:00:11.7]} 38... b4 {[%clk
0:00:20.5]} 39. Rb6 {[%clk 0:00:09.8]} 39... Rxb6 {[%clk 0:00:19.3]} 40. Bxb6
{[%clk 0:00:10.1]} 40... Bc3 {[%clk 0:00:18.5]} 41. Ba5 {[%clk 0:00:08.3]} 41...
Nc2 {[%clk 0:00:18.5]} 42. Kf1 {[%clk 0:00:08.3]} 42... Kf6 {[%clk 0:00:17.5]}
43. Rb1 {[%clk 0:00:07]} 43... Ke5 {[%clk 0:00:17.4]} 44. Ke2 {[%clk 0:00:06.9]}
44... Kxd5 {[%clk 0:00:16.1]} 45. Kd3 {[%clk 0:00:06.7]} 45... Nd4 {[%clk
0:00:14]} 46. Bxb4 {[%clk 0:00:06.2]} 46... Bxb4 {[%clk 0:00:13.9]} 47. Rxb4
{[%clk 0:00:06.5]} 47... Ne6 {[%clk 0:00:13.4]} 48. Ke3 {[%clk 0:00:06.3]} 48...
f5 {[%clk 0:00:12.8]} 49. Rb7 {[%clk 0:00:06.2]} 49... h5 {[%clk 0:00:10.7]} 50.
f4 {[%clk 0:00:05.8]} 50... gxf4+ {[%clk 0:00:08.9]} 51. gxf4 {[%clk 0:00:06.7]}
51... Kc6 {[%clk 0:00:06]} 52. Rh7 {[%clk 0:00:06.8]} 52... d5 {[%clk
0:00:05.6]} 53. Rxh5 {[%clk 0:00:07.2]} 53... d4+ {[%clk 0:00:06.2]} 54. Kf3
{[%clk 0:00:07.6]} 54... Kd6 {[%clk 0:00:06]} 55. Rxf5 {[%clk 0:00:06.8]} 55...
Nc5 {[%clk 0:00:05.9]} 56. Rxc5 {[%clk 0:00:05.9]} 56... Kxc5 {[%clk 0:00:05.8]}
57. Ke2 {[%clk 0:00:06.4]} 1-0

[Event "*** Titled Tuesday Blitz"]
[Site "Chess.com"]
[Date "2020.05.19"]
[Round "8"]
[White "Gvetadze"]
[Black "petrkostenko"]
[Result "0-1"]
[WhiteElo "2398"]
[BlackElo "2537"]
[TimeControl "180+1"]
[EndTime "13:37:39 PDT"]
[Termination "petrkostenko won on time"]

1. Nf3 {[%clk 0:03:00.9]} 1... e6 {[%clk 0:02:54.2]} 2. g3 {[%clk 0:03:00.4]}
2... f5 {[%clk 0:02:53.8]} 3. Bg2 {[%clk 0:03:00.2]} 3... Nf6 {[%clk 0:02:54.4]}
4. O-O {[%clk 0:03:00.5]} 4... d5 {[%clk 0:02:53.6]} 5. d3 {[%clk 0:03:01.4]}
5... Be7 {[%clk 0:02:52.2]} 6. Nbd2 {[%clk 0:03:02.3]} 6... O-O {[%clk
0:02:49.3]} 7. e4 {[%clk 0:03:03.2]} 7... dxe4 {[%clk 0:02:49.2]} 8. dxe4 {[%clk
0:03:03.1]} 8... Nxe4 {[%clk 0:02:47.9]} 9. Nxe4 {[%clk 0:03:02.6]} 9... Qxd1
{[%clk 0:02:44]} 10. Rxd1 {[%clk 0:03:01.5]} 10... fxe4 {[%clk 0:02:44.1]} 11.
Ng5 {[%clk 0:03:00.1]} 11... Nc6 {[%clk 0:02:20.6]} 12. Bxe4 {[%clk 0:02:55.3]}
12... h6 {[%clk 0:02:12.8]} 13. Nf3 {[%clk 0:02:52.4]} 13... Bf6 {[%clk
0:02:09.1]} 14. c3 {[%clk 0:02:50.6]} 14... a5 {[%clk 0:02:05.9]} 15. Be3 {[%clk
0:02:48.6]} 15... a4 {[%clk 0:02:05.2]} 16. Bc5 {[%clk 0:02:42.1]} 16... Re8
{[%clk 0:02:00.3]} 17. Bg6 {[%clk 0:02:38]} 17... Rd8 {[%clk 0:01:59.8]} 18.
Rxd8+ {[%clk 0:02:33.9]} 18... Nxd8 {[%clk 0:01:58.9]} 19. Rd1 {[%clk
0:02:31.1]} 19... b6 {[%clk 0:01:44.4]} 20. Ba3 {[%clk 0:02:30.2]} 20... Bb7
{[%clk 0:01:25.6]} 21. Nd4 {[%clk 0:02:25.8]} 21... Bd5 {[%clk 0:01:21.9]} 22.
Nb5 {[%clk 0:02:21.8]} 22... Rc8 {[%clk 0:01:15]} 23. Be8 {[%clk 0:01:47.8]}
23... Nb7 {[%clk 0:00:49.4]} 24. Bg6 {[%clk 0:01:29.8]} 24... c6 {[%clk
0:00:42.3]} 25. Nd6 {[%clk 0:00:54.1]} 25... Nxd6 {[%clk 0:00:42.2]} 26. Bxd6
{[%clk 0:00:53.6]} 26... Bxa2 {[%clk 0:00:42.8]} 27. h4 {[%clk 0:00:46.8]} 27...
Bd5 {[%clk 0:00:40.4]} 28. Ra1 {[%clk 0:00:43.7]} 28... b5 {[%clk 0:00:40.3]}
29. Bc5 {[%clk 0:00:41.2]} 29... Rd8 {[%clk 0:00:39.2]} 30. h5 {[%clk
0:00:36.2]} 30... Bf3 {[%clk 0:00:39]} 31. Bb6 {[%clk 0:00:31.2]} 31... Rd2
{[%clk 0:00:37.6]} 32. Re1 {[%clk 0:00:23.3]} 32... e5 {[%clk 0:00:31.4]} 33.
Rb1 {[%clk 0:00:19.6]} 33... e4 {[%clk 0:00:29.1]} 34. Kh2 {[%clk 0:00:19.2]}
34... a3 {[%clk 0:00:25.7]} 35. bxa3 {[%clk 0:00:18.8]} 35... Bxc3 {[%clk
0:00:25.7]} 36. Rc1 {[%clk 0:00:18.8]} 36... Rd3 {[%clk 0:00:19.8]} 37. Be3
{[%clk 0:00:13.4]} 37... Kf8 {[%clk 0:00:17.8]} 38. Kh3 {[%clk 0:00:11.8]} 38...
Ke7 {[%clk 0:00:17.8]} 39. Bc5+ {[%clk 0:00:11.6]} 39... Kd7 {[%clk 0:00:17]}
40. Be3 {[%clk 0:00:09]} 40... Kd6 {[%clk 0:00:15.7]} 41. Bf4+ {[%clk
0:00:06.4]} 41... Kd7 {[%clk 0:00:15.7]} 42. Be3 {[%clk 0:00:06.1]} 42... Be5
{[%clk 0:00:13.3]} 43. Rc5 {[%clk 0:00:04.7]} 43... Bd6 {[%clk 0:00:13.2]} 44.
Rf5 {[%clk 0:00:03.9]} 44... Bxa3 {[%clk 0:00:12.9]} 45. Rf7+ {[%clk 0:00:03.9]}
45... Ke6 {[%clk 0:00:12.6]} 46. Rxg7 {[%clk 0:00:03.5]} 46... b4 {[%clk
0:00:12.7]} 47. Bf7+ {[%clk 0:00:02.4]} 47... Kf6 {[%clk 0:00:11.8]} 48. Bxh6
{[%clk 0:00:02.3]} 48... b3 {[%clk 0:00:10.3]} 0-1

[Event "*** Titled Tuesday Blitz"]
[Site "Chess.com"]
[Date "2020.05.19"]
[Round "8"]
[White "Tormoz"]
[Black "Andreikka"]
[Result "0-1"]
[WhiteElo "2680"]
[BlackElo "2950"]
[TimeControl "180+1"]
[EndTime "13:37:40 PDT"]
[Termination "Andreikka won by resignation"]

1. d4 {[%clk 0:03:00.9]} 1... Nf6 {[%clk 0:02:58.4]} 2. Nf3 {[%clk 0:03:01]}
2... d5 {[%clk 0:02:55.1]} 3. c4 {[%clk 0:03:00.1]} 3... e6 {[%clk 0:02:53.9]}
4. g3 {[%clk 0:03:00.2]} 4... Bb4+ {[%clk 0:02:51.1]} 5. Nc3 {[%clk 0:02:59.8]}
5... Be7 {[%clk 0:02:52]} 6. Bg2 {[%clk 0:02:59.3]} 6... O-O {[%clk 0:02:52.6]}
7. O-O {[%clk 0:02:59.4]} 7... Nbd7 {[%clk 0:02:53]} 8. Ne5 {[%clk 0:02:54.4]}
8... c6 {[%clk 0:02:51.4]} 9. e4 {[%clk 0:02:53.1]} 9... dxc4 {[%clk 0:02:48.8]}
10. Nxc4 {[%clk 0:02:52.4]} 10... b5 {[%clk 0:02:49.3]} 11. Ne3 {[%clk
0:02:49.2]} 11... Bb7 {[%clk 0:02:47.8]} 12. e5 {[%clk 0:02:44.5]} 12... Nd5
{[%clk 0:02:47.1]} 13. Nexd5 {[%clk 0:02:44.5]} 13... cxd5 {[%clk 0:02:40.4]}
14. Nxb5 {[%clk 0:02:43.8]} 14... Ba6 {[%clk 0:02:40.3]} 15. a4 {[%clk
0:02:43.9]} 15... Qb6 {[%clk 0:02:40.8]} 16. Qd3 {[%clk 0:02:37.4]} 16... Rfc8
{[%clk 0:02:34.5]} 17. Bd2 {[%clk 0:02:33.6]} 17... Rc4 {[%clk 0:02:31.7]} 18.
b3 {[%clk 0:01:51.6]} 18... Bxb5 {[%clk 0:02:18.8]} 19. bxc4 {[%clk 0:01:51.6]}
19... Bxc4 {[%clk 0:02:19.2]} 20. Qc3 {[%clk 0:01:52.2]} 20... Bxf1 {[%clk
0:02:16.5]} 21. Bxf1 {[%clk 0:01:53.1]} 21... a5 {[%clk 0:02:05.7]} 22. Bb5
{[%clk 0:01:50.8]} 22... Bb4 {[%clk 0:02:05]} 23. Qb2 {[%clk 0:01:49.9]} 23...
Bxd2 {[%clk 0:01:54.6]} 24. Qxd2 {[%clk 0:01:50.8]} 24... Nf8 {[%clk 0:01:52.1]}
25. Rc1 {[%clk 0:01:50.4]} 25... Ng6 {[%clk 0:01:45]} 26. Rc6 {[%clk 0:01:40.8]}
26... Qd8 {[%clk 0:01:43.4]} 27. Qc3 {[%clk 0:01:31.5]} 27... Ne7 {[%clk
0:01:42.1]} 28. Rd6 {[%clk 0:01:11.5]} 28... Qc8 {[%clk 0:01:40.5]} 29. Qxc8+
{[%clk 0:01:08.9]} 29... Rxc8 {[%clk 0:01:40.2]} 30. Ra6 {[%clk 0:01:07.3]}
30... Nf5 {[%clk 0:01:39.8]} 31. Rxa5 {[%clk 0:01:00.3]} 31... Nxd4 {[%clk
0:01:40.1]} 32. Kg2 {[%clk 0:00:58.9]} 32... g5 {[%clk 0:01:38.7]} 33. Bd7
{[%clk 0:00:47.9]} 33... Rc1 {[%clk 0:01:32.2]} 34. Ra7 {[%clk 0:00:42.8]} 34...
g4 {[%clk 0:01:29.5]} 35. h3 {[%clk 0:00:37.4]} 35... h5 {[%clk 0:01:28.6]} 36.
hxg4 {[%clk 0:00:25.5]} 36... hxg4 {[%clk 0:01:28.5]} 37. Bb5 {[%clk 0:00:25.7]}
37... Nf3 {[%clk 0:00:48.2]} 38. Bf1 {[%clk 0:00:24.7]} 38... Nxe5 {[%clk
0:00:47.3]} 39. a5 {[%clk 0:00:24.9]} 39... Nf3 {[%clk 0:00:41.6]} 40. a6 {[%clk
0:00:24.2]} 40... Ra1 {[%clk 0:00:39.8]} 41. Rb7 {[%clk 0:00:23]} 41... Kg7
{[%clk 0:00:38.8]} 42. a7 {[%clk 0:00:21.8]} 42... Kf6 {[%clk 0:00:36.3]} 43.
Rc7 {[%clk 0:00:20.7]} 43... d4 {[%clk 0:00:32.8]} 44. Rd7 {[%clk 0:00:19.5]}
44... d3 {[%clk 0:00:32.1]} 45. a8=Q {[%clk 0:00:15.9]} 45... Rxa8 {[%clk
0:00:31.5]} 46. Bxd3 {[%clk 0:00:16.5]} 46... Ra1 {[%clk 0:00:28.6]} 47. Bf1
{[%clk 0:00:16.5]} 47... Kg6 {[%clk 0:00:28.9]} 48. Bd3+ {[%clk 0:00:16]} 48...
f5 {[%clk 0:00:28.3]} 49. Bf1 {[%clk 0:00:16.9]} 49... Kf6 {[%clk 0:00:27.3]}
50. Rd6 {[%clk 0:00:16.5]} 50... Ke7 {[%clk 0:00:23.3]} 51. Rb6 {[%clk
0:00:16.5]} 51... Kf6 {[%clk 0:00:22.5]} 52. Rd6 {[%clk 0:00:14.6]} 52... Re1
{[%clk 0:00:22.4]} 53. Ra6 {[%clk 0:00:13.7]} 53... Kg5 {[%clk 0:00:22.7]} 54.
Rb6 {[%clk 0:00:13.2]} 54... e5 {[%clk 0:00:22.6]} 55. Rb8 {[%clk 0:00:13.1]}
55... f4 {[%clk 0:00:18.1]} 56. Rg8+ {[%clk 0:00:13]} 56... Kh5 {[%clk
0:00:15.4]} 57. Rh8+ {[%clk 0:00:12.9]} 57... Kg6 {[%clk 0:00:15.8]} 58. Rg8+
{[%clk 0:00:13.1]} 58... Kf5 {[%clk 0:00:16.3]} 59. Rf8+ {[%clk 0:00:13.4]}
59... Ke4 {[%clk 0:00:14.9]} 60. gxf4 {[%clk 0:00:13]} 60... Nh4+ {[%clk
0:00:14.8]} 61. Kg3 {[%clk 0:00:12.3]} 61... Nf5+ {[%clk 0:00:15.3]} 62. Kxg4
{[%clk 0:00:11]} 62... Rxf1 {[%clk 0:00:15.7]} 63. f3+ {[%clk 0:00:11.4]} 63...
Rxf3 {[%clk 0:00:15.2]} 64. fxe5 {[%clk 0:00:11.2]} 64... Ne3+ {[%clk
0:00:15.6]} 65. Kg5 {[%clk 0:00:10]} 65... Rxf8 {[%clk 0:00:16.5]} 66. e6 {[%clk
0:00:10.3]} 66... Nd5 {[%clk 0:00:16.1]} 0-1